bitfinex-derivatives/quotes_ETHF0:USTF0_20250804
["timestamp","ask_amount","ask_price","bid_price","bid_amount"]
[1754289154689,2.40492,3527.6,3527.5,1.0438]
[1754289155288,2.40492,3527.6,3527.5,1.379]
[1754289155789,2.40492,3527.6,3527.5,1.8615]
[1754289157486,2.40492,3527.6,3527.5,1.379]
[1754289157790,2.40492,3527.6,3527.5,1.0438]
[1754289158590,2.40496,3527.3,3527.2,5.0693]
[1754289158891,1.838,3527.3,3527.2,5.0693]
[1754289159587,1.5213,3527.3,3527.2,5.0693]
[1754289163793,1.838,3527.3,3527.2,5.0693]
[1754289165592,2.62310852,3527.3,3527.2,5.0693]
[1754289165891,2.62310852,3527.3,3527.2,4.7341]
[1754289166892,2.62310852,3527.3,3527.2,5.0725]
[1754289168092,1.51370852,3527.3,3527.2,5.0725]
[1754289168488,2.31190852,3527.3,3527.2,5.0725]
[1754289169588,2.7773778,3527.3,3527.2,5.0725]
[1754289170096,2.62790852,3527.3,3527.2,5.0725]
[1754289170491,2.7774584,3527.3,3527.2,5.0725]
[1754289170694,1.8554,3526.9,3526.8,4.7452]
[1754289170887,2.64050852,3526.9,3526.8,1.5374]
[1754289171292,2.64050852,3526.9,3526.8,1.8756]
[1754289175596,0.78510852,3526.9,3526.8,1.8756]
[1754289175802,1.52630852,3526.9,3526.8,2.44263]
[1754289175999,2.64050852,3526.9,3526.8,2.44263]
[1754289176203,0.78510852,3526.9,3526.8,5.65043]
[1754289176402,0.78510852,3527.2,3527.1,1.8756]
[1754289177297,4.2245511,3527.7,3527.6,0.7429]
[1754289177499,1.0167511,3528.0,3527.9,0.5202]
[1754289177699,1.0167511,3528.0,3527.9,1.8474]
[1754289177700,0.14941839,3528.0,3527.9,1.8474]
[1754289177904,1.0167511,3528.1,3528.0,1.30975]
[1754289178099,1.0167511,3528.1,3528.0,2.41425]
[1754289178300,1.0167511,3528.2,3528.0,1.30975]
[1754289178599,1.0167511,3528.2,3528.1,1.5297]
[1754289178799,1.2348511,3528.2,3528.1,1.8474]
[1754289178998,0.8434,3528.2,3528.1,1.8474]
[1754289179199,3.2078,3528.3,3528.1,1.5092]
[1754289179506,1.8554,3528.2,3528.1,0.2206]
[1754289179703,1.8554,3527.9,3527.8,1.0811]
[1754289179904,1.8554,3527.9,3527.8,1.8474]
[1754289180604,1.8554,3527.9,3527.8,1.5092]
[1754289181207,1.8554,3527.9,3527.8,0.4433]
[1754289181402,2.42228,3527.9,3527.7,3.2078]
[1754289181706,1.8554,3527.8,3527.7,3.2078]
[1754289182607,1.8554,3527.8,3527.7,3.6511]
[1754289183305,1.8554,3527.8,3527.7,3.9688]
[1754289184100,1.8554,3527.8,3527.7,3.6511]
[1754289184307,1.8554,3527.8,3527.7,3.4284]
[1754289185006,1.8554,3527.8,3526.5,19.382]
[1754289185007,1.1945,3527.2,3527.1,3.2078]
[1754289185202,1.5394,3526.8,3526.7,3.4305]
[1754289185707,1.8554,3526.8,3526.7,4.7167]
[1754289186109,1.8554,3526.8,3526.7,1.5089]
[1754289187008,1.8554,3526.8,3526.7,2.07596]
[1754289187203,1.8554,3526.8,3526.7,1.5089]
[1754289187807,1.8554,3526.8,3526.7,1.8471]
[1754289195207,1.8554,3526.8,3526.7,1.5089]
[1754289195810,1.8417,3526.6,3526.5,3.2078]
[1754289196110,1.8417,3526.6,3526.5,3.6359]
[1754289196712,1.8417,3526.6,3526.5,3.2078]
[1754289197610,1.8417,3526.6,3526.5,3.4189]
[1754289197811,1.8417,3526.6,3526.5,3.9728]
[1754289198310,1.8417,3526.6,3526.5,3.2078]
[1754289199215,1.8417,3526.6,3526.5,3.4189]
[1754289200514,1.8417,3526.6,3526.5,0.2111]
[1754289200815,1.8417,3526.6,3526.5,1.8357]
[1754289203314,0.56704,3526.8,3526.7,0.5259]
[1754289203518,0.77196365,3526.8,3526.7,1.8357]
[1754289203816,1.8417,3526.8,3526.7,1.8357]
[1754289204723,2.61359991,3526.8,3526.7,1.5227]
[1754289205114,1.8417,3526.8,3526.7,1.5227]
[1754289205916,0.56703,3526.9,3526.8,1.8357]
[1754289205917,1.63,3526.9,3526.8,1.8357]
[1754289206219,2.61352476,3526.9,3526.8,1.8357]
[1754289212314,2.76266466,3526.9,3526.8,1.8357]
[1754289212618,2.61352476,3526.9,3526.8,1.8357]
[1754289213317,1.8417,3526.2,3526.1,1.0739]
[1754289214122,1.8417,3526.2,3526.1,1.5227]
[1754289214417,1.8417,3526.2,3526.1,1.8357]
[1754289216819,2.61476812,3526.2,3526.1,0.4281]
[1754289217121,1.8417,3526.2,3526.1,0.765]
[1754289217322,1.8417,3526.2,3526.1,1.2138]
[1754289218422,1.8417,3526.2,3526.1,1.5227]
[1754289219920,1.8417,3526.2,3526.1,0.4281]
[1754289220627,2.61465205,3526.2,3526.1,1.2138]
[1754289221624,2.61465205,3526.2,3526.1,1.8357]
[1754289223025,0.56715,3526.1,3525.9,4.22880143]
[1754289223222,1.8417,3526.0,3525.9,1.02100143]
[1754289223428,2.61456092,3526.0,3525.9,1.02100143]
[1754289223624,2.76380843,3526.0,3525.9,1.02100143]
[1754289224027,2.61456092,3526.0,3525.9,1.02100143]
[1754289224229,2.76381844,3526.0,3525.9,1.02100143]
[1754289224626,2.76378653,3526.0,3525.9,1.02100143]
[1754289224932,2.76378653,3526.0,3525.9,1.79230143]
[1754289225134,2.76378653,3526.0,3525.9,2.24080143]
[1754289225334,2.76378653,3526.0,3525.9,2.55270143]
[1754289225530,2.76378653,3526.0,3525.9,2.86130143]
[1754289225832,0.77286092,3526.0,3525.9,2.86130143]
[1754289226030,0.77286092,3526.1,3525.9,1.76440143]
[1754289226333,0.7239,3526.1,3526.0,1.8403]
[1754289226535,1.29107,3526.0,3525.9,1.02100143]
[1754289226729,3.31357661,3526.0,3525.9,1.02100143]
[1754289227630,2.74640661,3526.0,3525.9,2.55270143]
[1754289227835,2.74640661,3526.0,3525.9,2.86130143]
[1754289228235,1.62586092,3526.0,3525.9,2.86130143]
[1754289228438,0.77286092,3526.2,3525.9,2.86130143]
[1754289228628,0.77286092,3526.1,3526.0,1.8403]
[1754289228926,2.08596092,3526.2,3526.1,1.052]
[1754289229132,0.77286092,3526.2,3526.1,1.8403]
[1754289230625,2.08596092,3526.5,3526.4,0.7434]
[1754289230831,2.08596092,3526.5,3526.4,1.8403]
[1754289230832,2.59726092,3526.5,3526.4,1.8403]
[1754289231532,2.59726092,3526.5,3526.4,1.2198]
[1754289231735,2.59726092,3526.5,3526.4,0.7713]
[1754289232638,2.59726092,3526.5,3526.4,1.8403]
[1754289238639,2.59726092,3526.5,3526.4,1.5317]
[1754289239646,2.59726092,3526.5,3526.4,1.8403]
[1754289239847,1.29216092,3526.5,3526.4,1.8403]
[1754289240148,0.77286092,3526.6,3526.5,1.8403]
[1754289240443,1.8244,3526.6,3526.5,1.2198]
[1754289240743,2.59726092,3526.6,3526.5,1.2198]
[1754289240939,2.74625643,3526.6,3526.5,1.2198]
[1754289241141,2.74627125,3526.6,3526.5,1.2198]
[1754289241738,2.59726092,3526.6,3526.5,1.2198]
[1754289241941,2.59726092,3526.6,3526.5,1.8403]
[1754289242341,0.77286092,3526.6,3526.5,1.8403]
[1754289242544,1.25567647,3527.0,3526.7,0.7434]
[1754289242545,1.10656092,3526.8,3526.7,0.7434]
[1754289242838,1.46210468,3526.8,3526.7,1.8403]
[1754289243040,2.2349656,3526.8,3526.7,1.8403]
[1754289243442,1.46210468,3526.8,3526.7,1.8403]
[1754289243638,2.2349656,3526.8,3526.7,1.8403]
[1754289244043,1.66670468,3526.8,3526.7,1.8403]
[1754289244248,2.7462656,3526.8,3526.7,1.8403]
[1754289245452,2.59726092,3526.8,3526.7,1.8403]
[1754289250755,1.8244,3526.8,3526.7,1.8403]
[1754289254257,2.59697204,3526.8,3526.7,1.8403]
[1754289254554,1.8244,3526.8,3526.7,1.8403]
[1754289254757,2.59696854,3526.8,3526.7,1.8403]
[1754289254956,2.59696162,3526.8,3526.7,1.8403]
[1754289259859,0.77256162,3526.8,3526.7,1.8403]
[1754289260058,0.77256162,3526.9,3526.7,0.7434]
[1754289260359,1.8596,3526.9,3526.8,1.8257]
[1754289260555,2.78239394,3526.9,3526.8,1.8257]
[1754289261454,1.09000859,3526.9,3526.8,1.8257]
[1754289261657,0.3163,3526.9,3526.8,1.8257]
[1754289261858,2.63330859,3526.9,3526.8,1.8257]
[1754289264856,2.42667,3526.6,3526.5,3.2078]
[1754289265168,1.8596,3526.1,3526.0,5.26647]
[1754289265663,1.8596,3526.1,3526.0,5.60067]
[1754289265861,1.8596,3526.1,3526.0,3.628]
[1754289266066,1.8596,3526.1,3526.0,3.2078]
[1754289266661,1.31297,3526.0,3525.9,1.23530143]
[1754289266962,2.42677,3526.0,3525.9,1.23530143]
[1754289267362,3.19834808,3526.0,3525.9,1.02100143]
[1754289268067,0.7458,3525.3,3525.2,1.5052]
[1754289268275,1.8596,3525.3,3525.2,1.5052]
[1754289268576,1.8596,3525.3,3525.2,1.8257]
[1754289270768,2.42688,3525.3,3525.2,1.8257]
[1754289270971,1.8596,3525.3,3525.2,1.8257]
[1754289272570,0.7458,3525.3,3525.2,0.9567]
[1754289272873,1.3131,3525.2,3525.1,3.934]
[1754289273166,1.8596,3525.2,3525.1,4.713]
[1754289273563,1.8596,3525.2,3525.1,3.9868]
[1754289273774,1.8596,3525.2,3525.1,4.713]
[1754289274071,1.8596,3525.2,3525.1,5.0335]
[1754289275163,1.8596,3525.2,3525.1,4.713]
[1754289275868,1.8596,3525.2,3525.1,5.60081]
[1754289276571,0.7975,3525.8,3525.5,1.5052]
[1754289276871,0.3163,3525.7,3525.6,1.8257]
[1754289277071,0.5382,3525.7,3525.6,1.8257]
[1754289277268,0.2219,3525.7,3525.6,1.8257]
[1754289277464,0.5382,3525.7,3525.6,1.8257]
[1754289277669,1.0621,3525.7,3525.6,1.8257]
[1754289277869,1.8596,3525.7,3525.6,1.8257]
[1754289278070,1.8596,3525.7,3525.6,1.5052]
[1754289278574,1.8596,3525.6,3525.5,0.7262]
[1754289278771,1.8596,3525.6,3525.5,1.5052]
[1754289278969,0.793,3525.5,3525.1,3.2078]
[1754289279272,1.8596,3525.2,3525.1,4.713]
[1754289279471,1.8596,3525.2,3525.1,5.0335]
[1754289280074,1.8596,3525.2,3525.1,4.713]
[1754289282373,1.8596,3525.2,3525.1,5.0335]
[1754289284076,1.0621,3525.2,3525.1,5.0335]
[1754289284476,1.8227,3525.7,3525.6,0.7528]
[1754289284674,1.8227,3525.7,3525.6,1.0844]
[1754289284874,1.8227,3525.7,3525.6,1.8948]
[1754289285267,1.8227,3525.7,3525.6,1.5675]
[1754289285467,1.8227,3525.3,3525.1,3.77511]
[1754289285679,1.8227,3525.3,3525.2,1.8948]
[1754289286880,0.7389,3525.6,3525.5,1.8948]
[1754289287081,3.2078,3526.0,3525.8,1.8948]
[1754289287380,0.45249702,3525.9,3525.8,0.7528]
[1754289287680,1.8227,3525.9,3525.8,0.7528]
[1754289287972,1.8227,3525.9,3525.8,1.8948]
[1754289288173,1.8227,3525.9,3525.8,0.7528]
[1754289288575,0.5154,3525.7,3525.6,1.3466]
[1754289288877,1.8227,3525.7,3525.6,1.8948]
[1754289289075,3.9871,3526.0,3525.6,1.142]
[1754289289279,5.86074083,3526.4,3526.0,0.56715]
[1754289289476,5.0305,3526.4,3526.3,1.5675]
[1754289289679,5.94810095,3526.4,3526.3,1.8948]
[1754289290081,1.75800095,3526.4,3526.3,2.46192]
[1754289290380,0.14805589,3526.4,3526.3,2.46192]
[1754289291187,1.2947,3526.6,3526.5,2.46189]
[1754289291373,0.14816189,3526.6,3526.5,1.31989]
[1754289291572,0.14816189,3526.6,3526.5,1.65149]
[1754289292076,0.14816189,3526.6,3526.5,1.8948]
[1754289292276,0.67616189,3526.6,3526.5,1.8948]
[1754289292469,1.97086189,3526.6,3526.5,1.8948]
[1754289293682,1.5182,3526.5,3526.4,0.8147]
[1754289293882,1.8227,3526.5,3526.4,1.8948]
[1754289294384,1.8227,3526.4,3526.3,4.7753]
[1754289294684,1.8227,3526.4,3526.3,3.9606]
[1754289294983,4.47564083,3526.4,3526.3,3.2078]
[1754289296379,5.24374714,3526.4,3526.3,3.2078]
[1754289296873,0.5359,3525.9,3525.8,1.3557]
[1754289297076,1.0705,3525.9,3525.5,3.77504]
[1754289297282,1.8227,3525.6,3525.5,5.66984]
[1754289300574,1.8227,3525.6,3525.5,5.34254]
[1754289300777,1.8227,3525.3,3525.2,1.32009]
[1754289300978,1.8227,3525.3,3525.2,1.65169]
[1754289301282,1.8227,3525.3,3525.2,0.7528]
[1754289301481,1.8227,3525.3,3525.2,1.8948]
[1754289302184,0.7389,3525.3,3525.1,3.2078]
[1754289302483,1.8227,3525.2,3525.1,4.7753]
[1754289302975,1.8227,3525.2,3525.1,5.1026]
[1754289303574,1.0434,3525.2,3525.1,5.1026]
[1754289305082,1.0434,3525.6,3525.5,0.7528]
[1754289305287,1.8227,3525.6,3525.5,1.8948]
[1754289305674,0.2235,3525.7,3525.6,1.93013]
[1754289305982,0.2235,3525.7,3525.6,2.46203]
[1754289306179,0.528,3525.7,3525.6,2.46203]
[1754289306775,0.2235,3525.7,3525.6,2.46203]
[1754289306980,1.8227,3525.7,3525.6,1.015]
[1754289307482,1.8227,3525.7,3525.6,1.8948]
[1754289308379,1.0434,3525.7,3525.6,1.8948]
[1754289308990,1.8227,3525.7,3525.6,1.8948]
[1754289310176,3.2078,3526.0,3525.9,2.46198]
[1754289310381,5.94713649,3526.0,3525.9,2.46198]
[1754289311387,5.94711956,3526.0,3525.9,2.46198]
[1754289313285,5.94711956,3526.0,3525.9,1.8948]
[1754289314082,2.73931956,3526.0,3525.9,1.8948]
[1754289314289,0.91661956,3526.0,3525.9,5.1026]
[1754289314484,0.14851024,3526.0,3525.9,5.1026]
[1754289315187,0.14851024,3526.0,3525.9,1.8948]
[1754289315386,0.44921024,3526.0,3525.9,1.8948]
[1754289315690,0.66381024,3526.0,3525.9,1.8948]
[1754289316184,1.63381024,3526.0,3525.9,1.8948]
[1754289316484,2.72911956,3526.0,3525.9,1.8948]
[1754289316892,2.58060932,3526.0,3525.9,1.8948]
[1754289317078,2.58060932,3526.0,3525.8,0.5672]
[1754289317283,1.5118,3526.0,3525.9,1.5129]
[1754289317484,2.42902888,3526.0,3525.9,1.5129]
[1754289317887,2.72972888,3526.0,3525.9,1.5129]
[1754289318294,1.65242888,3526.0,3525.9,1.8419]
[1754289318492,1.0359,3526.3,3526.2,0.7021]
[1754289318691,2.72978707,3526.3,3526.2,1.8419]
[1754289319184,1.95318707,3526.3,3526.2,1.8419]
[1754289319590,0.5153,3526.3,3526.2,1.8419]
[1754289319784,0.66391259,3526.3,3526.2,1.8419]
[1754289319990,0.5153,3526.3,3526.2,1.8419]
[1754289320389,1.0359,3526.3,3526.1,0.56714]
[1754289320591,1.8125,3526.2,3526.1,1.59824]
[1754289321092,1.8125,3526.2,3525.9,3.2078]
[1754289321093,0.5153,3526.4,3526.3,0.76812]
[1754289321294,0.66389842,3526.4,3526.3,4.47702]
[1754289321683,0.76862341,3526.7,3526.6,0.56707]
[1754289321891,0.14858605,3526.7,3526.6,2.40897]
[1754289322093,1.96108605,3526.7,3526.6,2.40897]
[1754289322493,1.96105217,3526.7,3526.6,2.40897]
[1754289322694,1.96105217,3526.7,3526.6,1.5129]
[1754289322891,1.96105217,3526.7,3526.6,0.2088]
[1754289323091,1.8125,3526.7,3526.6,0.2088]
[1754289324188,1.8125,3526.7,3526.6,1.5129]
[1754289324395,1.8125,3526.7,3526.6,1.8419]
[1754289327098,1.4853,3526.7,3526.6,0.986]
[1754289327295,1.4853,3526.7,3526.6,0.5347]
[1754289327296,1.8125,3526.7,3526.6,0.5347]
[1754289327496,1.8125,3526.4,3526.3,3.77491]
[1754289327802,1.8125,3526.4,3526.3,5.28781]
[1754289328500,1.8125,3526.4,3526.3,5.61681]
[1754289330097,0.56704,3526.9,3526.6,0.56706]
[1754289330298,1.8125,3526.4,3526.3,3.2078]
[1754289331301,1.8125,3526.4,3526.3,4.7207]
[1754289331501,1.8125,3526.4,3526.3,5.0497]
[1754289331892,1.5118,3526.9,3526.8,0.7021]
[1754289332093,1.5118,3526.9,3526.8,1.8419]
[1754289332297,2.27922071,3526.9,3526.8,1.8419]
[1754289332494,1.8125,3526.9,3526.8,1.8419]
[1754289332804,1.8125,3526.6,3526.5,1.37789]
[1754289333003,1.8125,3526.6,3526.5,2.07999]
[1754289333604,1.8125,3526.6,3526.5,1.5129]
[1754289333800,0.3272,3526.5,3526.3,3.77491]
[1754289334004,0.7352,3526.4,3526.3,5.28781]
[1754289334305,1.8125,3526.4,3526.3,5.28781]
[1754289334502,1.8125,3526.4,3526.3,5.61681]
[1754289334807,1.0359,3526.6,3526.5,1.26919]
[1754289335006,1.8125,3526.6,3526.5,2.40899]
[1754289336808,1.8125,3526.6,3526.5,1.5129]
[1754289340601,1.8125,3526.6,3526.3,3.77491]
[1754289340811,1.8125,3526.4,3526.3,3.2078]
[1754289341707,1.8125,3526.4,3526.3,5.0497]
[1754289342902,1.0773,3526.8,3526.6,0.56707]
[1754289343105,2.58060492,3526.8,3526.7,1.8419]
[1754289344802,1.0256,3527.1,3527.0,0.725]
[1754289345002,2.7139479,3527.1,3527.0,1.7859]
[1754289345510,2.7139479,3527.1,3527.0,1.4654]
[1754289345911,2.7139479,3527.1,3527.0,1.7859]
[1754289346700,0.9169479,3527.1,3527.0,1.7859]
[1754289346904,0.44380505,3527.4,3527.3,1.6632]
[1754289347103,1.78390505,3527.4,3527.3,1.6632]
[1754289347301,2.24080505,3527.4,3527.3,1.6632]
[1754289347506,2.24080505,3527.4,3527.3,1.1693]
[1754289347900,2.24080505,3527.4,3527.3,0.9633]
[1754289348109,2.05355505,3527.4,3527.1,0.1734]
[1754289348316,2.05355505,3527.4,3526.5,0.3205]
[1754289348317,0.7283,3526.7,3526.6,0.9633]
[1754289348511,1.797,3526.7,3526.6,1.6632]
[1754289348701,0.4569,3527.0,3526.7,0.56706]
[1754289349016,1.797,3527.0,3526.9,1.6632]
[1754289350405,1.797,3527.0,3526.8,3.2078]
[1754289350712,1.797,3526.9,3526.8,3.2078]
[1754289351307,1.797,3526.9,3526.8,4.1711]
[1754289352005,1.797,3526.9,3526.8,3.2078]
[1754289352813,1.797,3526.9,3526.8,3.5111]
[1754289353011,1.797,3526.9,3526.8,4.1711]
[1754289354017,2.36402,3526.9,3526.8,3.2078]
[1754289354713,0.56707,3526.6,3526.4,3.2078]
[1754289354919,1.797,3526.5,3526.4,3.2078]
[1754289355216,1.797,3526.5,3526.4,3.7268]
[1754289355413,1.797,3526.5,3526.4,4.871]
[1754289355617,0.7408,3526.5,3526.4,4.3771]
[1754289355920,1.797,3526.5,3526.4,4.871]
[1754289357620,1.797,3526.5,3526.4,4.3771]
[1754289358019,2.36409,3526.5,3526.4,4.1711]
[1754289358224,2.36409,3526.5,3526.4,3.7268]
[1754289358414,2.36409,3526.5,3526.4,3.5111]
[1754289358614,2.36409,3526.5,3526.4,3.2078]
[1754289358815,2.5610279,3526.5,3526.4,3.2078]
[1754289360015,2.70501751,3526.5,3526.4,3.2078]
[1754289361116,2.70501751,3526.5,3526.4,4.1711]
[1754289361316,2.70503367,3526.5,3526.4,4.3771]
[1754289361518,2.5610279,3526.5,3526.4,4.8723]
[1754289361820,6.87749193,3527.0,3526.7,0.4443]
[1754289361821,3.2078,3527.0,3526.7,0.4443]
[1754289362024,1.1852,3527.0,3526.9,1.6645]
[1754289362218,0.9696,3527.0,3526.9,1.6645]
[1754289362416,1.0381,3527.0,3526.9,1.6645]
[1754289362721,1.797,3527.0,3526.9,1.6645]
[1754289363123,1.3401,3527.0,3526.9,1.6645]
[1754289363425,2.560972,3527.3,3527.2,1.6645]
[1754289363622,2.70493321,3527.3,3527.2,1.6645]
[1754289364524,2.560972,3527.3,3527.2,1.6645]
[1754289367323,1.0381,3527.3,3527.2,4.8723]
[1754289367726,1.797,3527.3,3527.2,4.8723]
[1754289368526,1.2843,3527.3,3527.2,4.8723]
[1754289368723,1.495,3527.3,3527.2,4.8723]
[1754289368923,1.797,3527.3,3527.2,4.8723]
[1754289369823,0.7283,3527.3,3527.0,3.2078]
[1754289370029,1.797,3526.7,3526.6,3.2078]
[1754289370520,1.797,3526.7,3526.6,3.5111]
[1754289370719,1.797,3526.7,3526.6,4.1711]
[1754289371127,1.797,3526.7,3526.6,3.5111]
[1754289371328,1.797,3526.7,3526.6,3.2078]
[1754289375826,1.797,3526.7,3526.6,4.1946]
[1754289379131,1.797,3526.7,3526.6,4.8645]
[1754289380217,1.797,3526.7,3526.6,4.1946]
[1754289381125,1.797,3526.7,3526.6,0.9868]
[1754289382424,1.797,3526.7,3526.6,1.4552]
[1754289382624,1.797,3526.7,3526.6,1.6567]
[1754289383733,0.3145,3526.7,3526.6,1.6567]
[1754289384327,1.58698597,3526.9,3526.8,0.7]
[1754289384531,2.08268597,3526.9,3526.8,1.6406]
[1754289384722,1.8027,3526.9,3526.8,1.6406]
[1754289384927,2.56588597,3526.9,3526.8,1.6406]
[1754289385123,0.76318597,3526.9,3526.8,1.6406]
[1754289385329,1.4947,3527.1,3527.0,1.6406]
[1754289385525,1.63844308,3527.1,3527.0,1.6406]
[1754289385729,0.14374308,3527.1,3527.0,1.6406]
[1754289385929,1.8027,3527.1,3527.0,0.2989]
[1754289386230,1.8027,3526.6,3526.5,1.1722]
[1754289386432,1.8027,3526.6,3526.5,1.6406]
[1754289392531,1.8027,3526.3,3526.2,4.1785]
[1754289392937,1.8027,3526.3,3526.2,4.8484]
[1754289394035,0.7097,3526.5,3526.4,0.7]
[1754289394341,3.13295387,3526.9,3526.8,1.3441]
[1754289394531,3.13295387,3526.9,3526.8,1.6406]
[1754289395236,3.27671906,3526.9,3526.8,1.6406]
[1754289395738,2.70968906,3526.9,3526.8,1.6406]
[1754289397936,2.70968906,3526.9,3526.8,1.1722]
[1754289398242,2.70968906,3526.9,3526.8,0.9707]
[1754289398434,2.70968906,3526.9,3526.5,1.50758]
[1754289398738,1.8027,3526.6,3526.5,1.73538]
[1754289398929,1.8027,3526.6,3526.5,1.1683]
[1754289399133,1.8027,3526.6,3526.5,1.6405]
[1754289399332,2.56675214,3526.6,3526.5,1.6405]
[1754289401337,1.76805214,3526.6,3526.5,1.6405]
[1754289401541,0.4832,3526.8,3526.2,3.2078]
[1754289401542,0.76436242,3526.7,3526.6,1.26707]
[1754289402145,1.76836242,3526.9,3526.8,1.91104]
[1754289402344,1.05866242,3526.9,3526.8,2.20754]
[1754289402540,1.36666242,3526.9,3526.8,2.20754]
[1754289402845,0.76436242,3527.0,3526.9,1.6405]
[1754289403036,1.36666242,3527.1,3527.0,2.20751]
[1754289403237,1.004,3527.1,3527.0,5.41531]
[1754289403640,1.8027,3527.3,3527.2,1.6405]
[1754289403841,2.56687991,3527.3,3527.2,1.6405]
[1754289404641,0.7156,3527.1,3527.0,3.7185]
[1754289404837,1.7545,3527.1,3527.0,3.2078]
[1754289405042,1.4601,3526.8,3526.7,0.9948]
[1754289405243,1.7545,3526.8,3526.7,0.9948]
[1754289405432,1.47945504,3526.8,3526.6,3.2078]
[1754289405632,1.7545,3526.7,3526.6,3.2078]
[1754289406948,2.51831973,3526.7,3526.6,3.2078]
[1754289410541,2.51831973,3526.7,3526.6,4.4143]
[1754289410741,2.51831973,3526.7,3526.6,4.8808]
[1754289413946,2.51831973,3526.7,3526.6,3.2078]
[1754289415143,2.51831973,3526.7,3526.6,5.44787]
[1754289415350,2.06971973,3526.7,3526.6,4.8808]
[1754289415544,2.51831973,3526.7,3526.6,4.8808]
[1754289416946,0.56714,3526.2,3526.1,3.2078]
[1754289417146,2.3217,3525.9,3525.3,3.77507]
[1754289417346,1.4586,3526.1,3526.0,0.5107]
[1754289417540,1.7545,3526.1,3526.0,1.5006]
[1754289417850,1.8983256,3526.1,3526.0,1.2065]
[1754289419150,0.1438256,3526.1,3526.0,1.673]
[1754289419354,2.32162,3526.3,3526.2,1.0165]
[1754289419654,2.51696708,3526.3,3526.2,1.673]
[1754289420251,2.51696708,3526.3,3526.2,0.5107]
[1754289420549,2.66065323,3526.3,3526.2,0.5107]
[1754289420948,0.56714,3526.2,3526.0,0.4841]
[1754289421152,1.7545,3525.8,3525.7,4.2026]
[1754289421552,1.7545,3525.8,3525.7,3.7185]
[1754289421851,1.7545,3525.8,3525.7,4.8808]
[1754289422247,1.41753,3527.0,3525.7,4.8808]
[1754289422446,0.86722,3526.3,3526.2,0.3071]
[1754289422649,3.22677897,3526.3,3526.2,0.9948]
[1754289423042,3.22677897,3526.3,3526.2,0.5107]
[1754289423645,3.22677897,3526.3,3526.2,0.9948]
[1754289424550,2.32167,3526.0,3525.9,0.3071]
[1754289424758,2.3217,3525.8,3525.7,4.2026]
[1754289425145,1.7545,3525.8,3525.7,4.5867]
[1754289425355,1.7545,3525.8,3525.7,4.8808]
[1754289428654,1.7545,3526.1,3526.0,1.5006]
[1754289428854,2.51507589,3526.1,3526.0,1.673]
[1754289430359,1.3059,3526.1,3526.0,1.673]
[1754289430560,1.0058,3526.1,3526.0,1.673]
[1754289430760,0.76013433,3526.3,3526.2,0.7224]
[1754289430761,1.05453433,3526.3,3526.2,0.7224]
[1754289431062,0.5903,3526.3,3526.2,1.673]
[1754289431263,0.8062,3526.3,3526.2,1.673]
[1754289431458,1.0058,3526.3,3526.2,1.673]
[1754289432257,1.3059,3526.3,3526.2,1.673]
[1754289432462,2.51463433,3526.3,3526.2,1.673]
[1754289432963,1.7545,3525.9,3525.8,1.1889]
[1754289433157,1.7545,3525.9,3525.8,0.7224]
[1754289433458,1.7545,3525.9,3525.8,0.9948]
[1754289433664,1.7545,3525.9,3525.8,0.5107]
[1754289433864,1.7545,3525.9,3525.8,0.9534]
[1754289434164,1.7545,3525.9,3525.8,1.1651]
[1754289434362,1.7545,3525.9,3525.8,1.6329]
[1754289435265,2.65294083,3526.2,3525.8,1.6329]
[1754289435266,1.1987,3526.2,3526.1,0.7246]
[1754289435465,1.7923,3526.2,3526.1,1.6351]
[1754289435764,2.5527659,3526.2,3526.1,1.6351]
[1754289436462,0.7604659,3526.2,3526.1,1.3392]
[1754289436667,19.356,3526.4,3526.1,3.9324]
[1754289436863,1.7622659,3526.3,3526.2,1.6351]
[1754289437069,2.5527659,3526.3,3526.2,1.6351]
[1754289437267,2.5527659,3526.3,3526.2,1.1673]
[1754289438573,2.5527659,3526.3,3526.2,1.6351]
[1754289439573,0.7604659,3526.3,3526.2,1.6351]
[1754289439769,0.7604659,3526.5,3526.4,0.7246]
[1754289439968,0.90351917,3526.5,3526.4,1.6351]
[1754289440275,1.90531917,3526.5,3526.4,1.6351]
[1754289440468,2.0852659,3526.5,3526.4,1.6351]
[1754289440670,2.5527659,3526.5,3526.4,1.6351]
[1754289441171,0.7604659,3526.5,3526.4,1.6351]
[1754289441376,1.0550659,3526.5,3526.4,1.6351]
[1754289441672,1.3540659,3526.5,3526.4,1.6351]
[1754289442077,1.7622659,3526.5,3526.4,1.6351]
[1754289442372,1.7923,3526.4,3526.3,0.5256]
[1754289442672,1.7923,3526.4,3526.3,0.9683]
[1754289443267,2.55239582,3526.4,3526.3,0.9683]
[1754289444677,2.55239582,3526.4,3526.3,1.6351]
[1754289444874,2.08489582,3526.4,3526.3,1.6351]
[1754289445470,3.616,3526.6,3526.5,1.29169]
[1754289445673,0.76036363,3526.6,3526.5,2.20219]
[1754289445874,1.79056363,3526.8,3526.7,0.7246]
[1754289446074,1.93372934,3526.8,3526.7,1.6351]
[1754289446281,2.40122934,3526.8,3526.7,1.6351]
[1754289446475,2.22832934,3526.8,3526.7,1.6351]
[1754289446677,2.08516363,3526.8,3526.7,1.6351]
[1754289446978,0.76036363,3526.8,3526.7,1.6351]
[1754289447281,0.76036363,3526.9,3526.8,2.20214]
[1754289447682,1.76216363,3526.9,3526.8,1.6351]
[1754289448186,3.2078,3527.0,3526.9,2.20212]
[1754289448482,0.2946,3527.1,3526.9,4.49942]
[1754289448780,19.651,3527.3,3527.0,0.8965]
[1754289448981,20.3822,3527.3,3527.2,0.7246]